Cogmind - Beta 11.1 @@@ ROGUE MODE // 2022.12.22 @ 22:29:37 Player: Richard Blunt Result: Destroyed by DAS Turret with DAS Cannon Performance ------------- Evolutions (1) 500 Regions Visited (5) 1000 Robots Destroyed (73) 365 Value Destroyed (1728) 1728 Prototype IDs (25) 500 Alien Tech Used (0) 0 Bonus (300) 300 TOTAL SCORE: 4393 Bonus ------- Aligned with FarCom 300 Cogmind --------- Core Integrity 0/400 Matter 115/300 Energy 73/100 System Corruption 0% Temperature Cool (0) Movement Core (50) Location -9/Exiles Parts ------- > --- POWER (1) -------- (None) > --- PROPULSION (3) --- (None) > --- UTILITY (3) ------ Gravity Neutralizer Experimental Targeting Computer > --- WEAPON (2) ------- Longsword +1 > --- INVENTORY (5) ---- Huge Storage Unit Experimental Sensor Array Core Shielding High-powered Shotgun Grenade Launcher Peak State ------------ > --- POWER ------------ Improved Ion Engine > --- PROPULSION ------- (None) > --- UTILITY ---------- Gravity Neutralizer Improved Targeting Computer Experimental Targeting Computer > --- WEAPON ----------- Longsword +1 > --- INVENTORY -------- Experimental Sensor Array Heavy Assault Rifle High-powered Shotgun Grenade Launcher Mining Laser [Rating: 25] Favorites ----------- Power Light Ion Engine Engine Light Ion Engine Propulsion Light Treads Treads Light Treads Wheel Wheel Utility Huge Storage Unit Device Structural Scanner Storage Huge Storage Unit Processor Improved Targeting Computer Hackware Hacking Suite Protection Core Shielding Weapon High-powered Shotgun Ballistic Gun High-powered Shotgun Ballistic Cannon Improved Light Cannon Launcher Grenade Launcher Slashing Weapon Longsword +1 Build | -11 -10 -10 -9 -9 -9 ------- Run | Scr Mat Min Mat Min Exi Slots Evolved 2 | . . . 2 . . Power . | . . . . . . Propulsion 1 | . . . 1 . . Utility 1 | . . . 1 . . Weapon . | . . . . . . Parts Attached 70 | 7 15 . 20 9 19 Power 10 | 1 2 . 3 2 2 Engine 10 | 1 2 . 3 2 2 Core . | . . . . . . Reactor . | . . . . . . Propulsion 17 | 2 3 . 7 3 2 Treads 15 | 1 3 . 7 3 1 Leg . | . . . . . . Wheel 2 | 1 . . . . 1 Hover . | . . . . . . Flight . | . . . . . . Utility 21 | 2 4 . 7 2 6 Device 4 | 1 1 . 1 . 1 Storage 3 | 1 1 . 1 . . Processor 2 | . . . . . 2 Hackware 1 | . . . 1 . . Protection 11 | . 2 . 4 2 3 Artifact . | . . . . . . Weapon 22 | 2 6 . 3 2 9 Energy Gun . | . . . . . . Energy Cannon . | . . . . . . Ballistic Gun 15 | 2 2 . 3 2 6 Ballistic Cannon 3 | . 3 . . . . Launcher 2 | . 1 . . . 1 Special Weapon . | . . . . . . Impact Weapon . | . . . . . . Slashing Weapon 2 | . . . . . 2 Piercing Weapon . | . . . . . . Special Melee Weapon . | . . . . . . Unidentified Prototypes 2 | . . . . . 2 Parts Lost 31 | . 1 . 8 8 14 Power 5 | . . . 2 1 2 Propulsion 11 | . . . 3 3 5 Utility 8 | . 1 . 2 2 3 Weapon 7 | . . . 1 2 4 Highest Loss Streak 8 | . 1 . 2 7 8 To Critical Strikes 8 | . . . . . 8 Average Slot Usage (%) 97 | . 98 100 98 99 94 Engine 11 | . 14 14 10 10 10 Treads 29 | . 24 28 32 33 28 Device 2 | . 5 . 3 . . Storage 11 | . 14 14 11 11 10 Protection 17 | . 8 14 17 21 19 Ballistic Gun 20 | . 21 . 19 22 20 Ballistic Cannon 2 | . 5 28 2 . . Naked Turns . | . . . . . . Heaviest Build 99 | 14 38 38 99 97 96 Greatest Support 60 | 10 40 40 60 60 60 Greatest Overweight (x) 31 | 1 1 . 1 1 31 Average Overweight (x) . | . . . . 1 . Largest Inventory Capacity 25 | 8 15 15 25 25 25 Average Capacity 21 | 7 12 15 22 25 23 Most Carried 25 | 5 15 15 23 24 25 Average Carried 18 | 3 11 15 19 20 22 Final Capacity 25 | 8 15 15 25 25 5 Final Carried 21 | 5 15 15 21 21 5 Class Distribution -------------------- 77% | Mutant 21% | Scavenger-Mutant Dominant Class ---------------- Mutant | -10/Materials Mutant | -10/Mines Mutant | -9/Materials Mutant | -9/Mines Mutant | -9/Exiles Resources | -11 -10 -10 -9 -9 -9 ----------- Run | Scr Mat Min Mat Min Exi Matter Collected 2219 | 239 285 80 904 281 430 Remotely . | . . . . . . Salvage Created 2123 | 48 558 70 1058 276 113 Parts 142 | 7 32 2 82 16 3 Haulers Intercepted 1 | . . . 1 . . Recyclers Shooed 3 | 1 1 . 1 . . Parts Field Recycled . | . . . . . . Retrieved Matter . | . . . . . . Parts Self-Destructed . | . . . . . . Prevented . | . . . . . . Kills | -11 -10 -10 -9 -9 -9 ------- Run | Scr Mat Min Mat Min Exi Combat Hostiles Destroyed 59 | . 15 . 31 10 3 Guns 52 | . 10 . 30 10 2 Cannons 4 | . 3 . 1 . . AOE 3 | . 2 . . . 1 Classes Destroyed 12 | 1 5 . 4 1 1 Worker 3 | . 1 . 2 . . Builder 2 | . . . 1 1 . Tunneler 3 | 2 . . 1 . . Hauler 1 | . . . 1 . . Recycler 3 | . 2 1 . . . Operator 1 | . . . 1 . . Watcher 3 | . 1 . 2 . . Swarmer 20 | . 6 . 11 3 . Grunt 26 | . 9 . 12 5 . Sentry 8 | . . . 8 . . Demolisher 2 | . . . . 2 . Assembled 2 | . . . . . 2 Best Kill Streak 6 | 2 3 1 6 3 2 Combat Bots Only 5 | . 3 . 5 3 2 Max Kills in Single Turn 2 | 1 2 1 2 2 1 Gunslinging 1 | . . . 1 . . Exploded 2 | . 2 . . . 1 Melee . | . . . . . . Uniques/NPCs Destroyed 1 | . . . . . 1 8R-AWN (-9/Exiles) Combat | -11 -10 -10 -9 -9 -9 -------- Run | Scr Mat Min Mat Min Exi Damage Taken 4490 | . 650 . 1239 1153 1448 Core 554 | . 107 . 66 112 269 Absorbed by Shields . | . . . . . . Redirected to Shielding 35 | . . . 10 23 2 Regen/Repaired (Parts) 162 | . 88 . 74 . . Core Remaining (%) 78 | 100 . 57 . . . Volleys Fired 234 | 5 57 3 75 30 64 Largest 2 | 2 2 2 2 2 2 Hottest 78 | 40 59 78 78 48 46 Shots Fired 458 | 10 112 6 149 60 121 Gun 423 | 10 93 . 141 60 119 Cannon 31 | . 17 6 8 . . Launcher 4 | . 2 . . . 2 Special . | . . . . . . Kinetic 454 | 10 110 6 149 60 119 Thermal . | . . . . . . Explosive 4 | . 2 . . . 2 Electromagnetic . | . . . . . . Robot Hit Streak 11 | 7 10 2 7 9 11 Robot Miss Streak 5 | 1 4 3 5 3 2 Penetration Max . | . . . . . . Secondary Targets 7 | . 1 . 4 2 . Max Gunslinging Chain 1 | . 1 . 1 1 . Shots Hit Robots 306 | 7 64 3 105 40 87 Core Hits 126 | 3 32 1 55 18 17 Critical Kills 3 | 1 1 . 1 . . Critical Parts Destroyed 2 | . . . 2 . . Critical Strikes 6 | 1 2 . 3 . . Destroy 5 | 1 1 . 3 . . Blast 1 | . 1 . . . . Melee Attacks 1 | . . . . . 1 Impact . | . . . . . . Slashing 1 | . . . . . 1 Piercing . | . . . . . . Sneak Attacks . | . . . . . . Combat Hostiles . | . . . . . . Follow-up Attacks . | . . . . . . Damage Inflicted 5143 | 85 956 67 1936 691 1408 Guns 4426 | 85 551 . 1843 691 1256 Cannons 379 | . 235 60 84 . . Explosions 256 | . 154 . . . 102 Melee 50 | . . . . . 50 Ramming 32 | . 16 7 9 . . Kinetic 4805 | 85 786 60 1927 691 1256 Thermal . | . . . . . . Explosive 256 | . 154 . . . 102 Electromagnetic . | . . . . . . Impact . | . . . . . . Slashing 50 | . . . . . 50 Piercing . | . . . . . . Highest Corruption . | . . . . . . Average Corruption . | . . . . . . Corruption Purged . | . . . . . . Corruption Blocked . | . . . . . . Overload Shots . | . . . . . . Overflow Damage 35 | . 35 . . . . Projectiles 7 | . 7 . . . . Explosions 28 | . 28 . . . . Melee . | . . . . . . Knockbacks 5 | . 4 1 . . . Impact . | . . . . . . Kinetic 5 | . 4 1 . . . Secondary . | . . . . . . Self-Inflicted Damage 58 | . 54 . . . 4 Shots 3 | . 2 . . . 1 Rammed 8 | . 5 1 2 . . Targets Rammed 9 | . 6 1 2 . . Kicked . | . . . . . . Crushed 1 | . 1 . . . . Highest Temperature 74 | . 74 54 55 32 16 Average Temperature 13 | . 19 25 13 8 7 Received Heat Transfer 863 | . 219 . 453 171 20 Siege Activations . | . . . . . . Robots Corrupted . | . . . . . . Combat Hostiles . | . . . . . . Parts Fried . | . . . . . . Impact Corruptions . | . . . . . . Robots Melted . | . . . . . . Combat Hostiles . | . . . . . . Parts Melted . | . . . . . . Heat Transferred . | . . . . . . Parts Sabotaged . | . . . . . . Parts Stolen . | . . . . . . Parts Stripped . | . . . . . . Power Chain Reactions . | . . . . . . Missiles Intercepted . | . . . . . . Alert | -11 -10 -10 -9 -9 -9 ------- Run | Scr Mat Min Mat Min Exi Peak Influence 400 | 10 312 129 400 269 . Initial 124 | . 6 121 50 124 . Average 130 | 3 139 124 159 94 . Maximum Alert Level 2 | . 1 . 2 1 . Low Security (%) 72 | 100 75 100 61 80 . Level 1 27 | . 25 . 38 19 . Level 2 . | . . . . . . Level 3 . | . . . . . . Level 4 . | . . . . . . Level 5 . | . . . . . . High Security . | . . . . . . Max Security . | . . . . . . Squads Dispatched 10 | . 7 . 3 . . Investigation 6 | . 4 . 2 . . Extermination . | . . . . . . Reinforcement 4 | . 3 . 1 . . Assault . | . . . . . . Garrison . | . . . . . . Intercept . | . . . . . . Searches Triggered . | . . . . . . Construction Impeded . | . . . . . . Haulers Reinforced . | . . . . . . Active Scanning Responses . | . . . . . . Cargo Convoy Interrupts . | . . . . . . Stealth | -11 -10 -10 -9 -9 -9 --------- Run | Scr Mat Min Mat Min Exi Distress Signals 6 | . 2 . 4 . . Communications Jammed . | . . . . . . Distress Signals . | . . . . . . Times Spotted 94 | . 33 . 39 9 13 Peak Tracking Total 9 | . 5 . 5 3 9 Tactical Retreats 3 | . 1 . 1 . 1 Traps | -11 -10 -10 -9 -9 -9 ------- Run | Scr Mat Min Mat Min Exi Traps Triggered 4 | . 4 . . . . Indirectly . | . . . . . . Trap Hack Attempts . | . . . . . . Triggered . | . . . . . . Disarmed . | . . . . . . Reprogrammed . | . . . . . . Reused . | . . . . . . Traps Extracted . | . . . . . . Installed . | . . . . . . Triggered . | . . . . . . Exploded 3 | . . . . . 3 Machines | -11 -10 -10 -9 -9 -9 ---------- Run | Scr Mat Min Mat Min Exi Machines Disabled 4 | . 1 . . 1 2 Max in Single Turn 1 | . 1 . . 1 1 Machines Sabotaged . | . . . . . . Garrisons Compromised . | . . . . . . Overloaded Fab Kills . | . . . . . . Hacking | -11 -10 -10 -9 -9 -9 --------- Run | Scr Mat Min Mat Min Exi Machines Accessed 21 | . 9 . 11 . 1 Terminals 13 | . 6 . 7 . . Fabricators . | . . . . . . Repair Stations 2 | . 1 . 1 . . Recycling Units 4 | . 2 . 2 . . Scanalyzers 1 | . . . 1 . . Garrison Access . | . . . . . . Total Hacks 50 | . 23 . 26 . 1 Successful 25 | . 11 . 13 . 1 Failed 24 | . 11 . 13 . . Catastrophic 5 | . 1 . 4 . . Database Lockouts 1 | . 1 . . . . Manual 37 | . 19 . 17 . 1 Terminals 38 | . 19 . 19 . . Fabricators . | . . . . . . Repair Stations 4 | . 2 . 2 . . Recycling Units 5 | . 2 . 3 . . Scanalyzers 2 | . . . 2 . . Garrison Access . | . . . . . . Terminal Hacks 13 | . 5 . 7 . 1 Robot Analysis 4 | . 2 . 2 . . Branch Access Points 1 | . . . 1 . . Alert Level 2 | . . . 2 . . Unreport Threat 1 | . . . 1 . . Maintenance Status 1 | . 1 . . . . Hauler Manifests 2 | . 1 . 1 . . Zone Layout 1 | . 1 . . . . EX-Prototype ID Bank 1 | . . . . . 1 Fabricator Hacks . | . . . . . . Repair Station Hacks 4 | . 2 . 2 . . Scan Component 2 | . 1 . 1 . . Repair 2 | . 1 . 1 . . Recycling Unit Hacks . | . . . . . . Scanalyzer 2 | . . . 2 . . Insert Component 1 | . . . 1 . . Analyze 1 | . . . 1 . . Garrison Access Hacks . | . . . . . . Unauthorized Hacks 6 | . 4 . 2 . . Terminals 2 | . 2 . . . . Track 1 | . 1 . . . . Assimilate 1 | . 1 . . . . Fabricators . | . . . . . . Repair Stations . | . . . . . . Recycling Units 4 | . 2 . 2 . . Tunnel 4 | . 2 . 2 . . Scanalyzers . | . . . . . . Garrison Access . | . . . . . . Data Cores Recovered 1 | . . . 1 . . Used . | . . . . . . Hacking Detections 12 | . 5 . 7 . . Full Trace Events 1 | . 1 . . . . Feedback Events . | . . . . . . Feedback Blocked . | . . . . . . Robot Schematics Acquired . | . . . . . . Robots Built . | . . . . . . Authchips . | . . . . . . Time . | . . . . . . Total Robot Build Rating . | . . . . . . Part Schematics Acquired 1 | . . . 1 . . Parts Built . | . . . . . . Authchips . | . . . . . . Time . | . . . . . . Total Part Build Rating . | . . . . . . Parts Repaired 2 | . 1 . 1 . . Time 58 | . 26 . 32 . . Parts Recycled . | . . . . . . Recycled Matter . | . . . . . . Retrieved Matter . | . . . . . . Retrieved Components . | . . . . . . Parts Scanalyzed 1 | . . . 1 . . Part Schematics Acquired 1 | . . . 1 . . Parts Damaged . | . . . . . . Bothacking | -11 -10 -10 -9 -9 -9 ------------ Run | Scr Mat Min Mat Min Exi Used RIF Installer . | . . . . . . Robots Hacked . | . . . . . . Non-combat . | . . . . . . Combat . | . . . . . . Robot Hacks Applied . | . . . . . . Relay Couplers Released . | . . . . . . Fabnet Peak Effective % . | . . . . . . Robots Rewired . | . . . . . . Allies Hacked . | . . . . . . Hacks Repelled . | . . . . . . Allies | -11 -10 -10 -9 -9 -9 -------- Run | Scr Mat Min Mat Min Exi Total Allies . | . . . . . . Largest Group . | . . . . . . Highest-Rated Group . | . . . . . . Highest-Rated Ally . | . . . . . . Total Orders . | . . . . . . Ally Attacks . | . . . . . . Total Damage . | . . . . . . Kills . | . . . . . . Allies Corrupted . | . . . . . . Allies Melted . | . . . . . . Intel | -11 -10 -10 -9 -9 -9 ------- Run | Scr Mat Min Mat Min Exi Robot Analysis Total 4 | . 2 . 2 . . Derelict Logs Recovered 2 | . . . . 2 . Drone Launches . | . . . . . . Drone Recoveries . | . . . . . . Exploration | -11 -10 -10 -9 -9 -9 ------------- Run | Scr Mat Min Mat Min Exi Turns Passed 5733 | 96 1140 136 1701 1307 1353 Spaces Moved 2433 | 74 623 79 631 500 526 Core 86 | 2 . . . . 84 Treads 2098 | . 446 79 631 500 442 Legs . | . . . . . . Wheels 249 | 72 177 . . . . Hover . | . . . . . . Flight . | . . . . . . Fastest Speed 50 | 50 80 160 160 240 50 Average Speed 196 | 90 141 160 219 240 212 Slowest Speed 1600 | 95 160 160 240 240 1600 Overloaded Moves . | . . . . . . Propulsion Burnouts . | . . . . . . Robots Hopped . | . . . . . . Cave-ins Triggered . | . . . . . . Exploration Rate (%) 56 | 4 91 18 70 87 70 Regions Visited 5 Branch Regions 3 Pre-discovered Areas 5 | . 2 . 2 1 . Known Exits Taken 1 | . . . 1 . . Unknown Exits Taken 4 | 1 1 1 . 1 . Scrap Searched 3 | . . . . 3 . Spaces Dug . | . . . . . . Terrain Destroyed 23 | . 13 2 . . 8 Melee . | . . . . . . Projectile 3 | . 1 2 . . . AOE 20 | . 12 . . . 8 Terrain Rammed . | . . . . . . Walls Destroyed . | . . . . . . Machines Disabled . | . . . . . . Actions | -11 -10 -10 -9 -9 -9 --------- Run | Scr Mat Min Mat Min Exi Total 2962 | 90 782 82 798 547 663 Wait 126 | . 48 . 49 . 29 Move 2428 | 73 622 78 630 499 526 Hop . | . . . . . . Pick Up 54 | 5 21 . 13 7 8 Fast Attach 22 | 7 3 . 7 . 5 Attach 28 | . 4 . 7 8 9 Detach 7 | . 1 . 4 . 2 Swap 20 | . 8 . 6 1 5 Drop 31 | . 12 . 5 . 14 Fire 234 | 5 57 3 75 30 64 Melee 1 | . . . . . 1 Ram . | . . . . . . Kick . | . . . . . . Crush 9 | . 6 1 2 . . Escape Stasis . | . . . . . . Rewire 2 | . . . . 2 . Trap . | . . . . . . Miscellaneous . | . . . . . . Route ------- -11/Scrapyard -10/Materials (discovered 5 exits: *Mat x3 / [*Min x2]) -10/Mines -9/Materials (discovered 3 exits: [*Mat] / *Min x2) -9/Mines (discovered 2 exits: [*Mat] / *Exi) -9/Exiles (discovered 1 exit: [*Min]) History --------- Turn | Location | Event 2 | -11/Scrapyard | Met Revision 17 21 | -11/Scrapyard | Discovered new exit (range 16) 97 | -11/Scrapyard | Entered Materials 209 | -10/Materials | Discovered new exit (range 15) 306 | -10/Materials | Build established: Mutant 378 | -10/Materials | Repaired Lgt. Treads 419 | -10/Materials | Discovered new exit (range 15) 614 | -10/Materials | Discovered new exit (range 13) 921 | -10/Materials | Discovered new exit (range 16) 952 | -10/Materials | Central database locked down 1056 | -10/Materials | Discovered new exit (range 15) 1237 | -10/Materials | Entered Mines 1257 | -10/Mines | A weapon hastily lodged in a ceiling crevice suddenly fell to the ground 1349 | -10/Mines | Discovered new exit (range 16) 1373 | -10/Mines | Entered Materials 1373 | -9/Materials | Evolved 2 slots: Propulsion x1, Utility x1 1530 | -9/Materials | Identified exit to Mines 2341 | -9/Materials | Repaired Med. Armor Plating 2552 | -9/Materials | Discovered new exit (range 13) 2695 | -9/Materials | Build established: Scavenger-Mutant 3074 | -9/Materials | Entered Mines 3521 | -9/Mines | Discovered new exit (range 5) 3580 | -9/Mines | Assembled infested the area 3650 | -9/Mines | Lost 7 parts (1p3n2u1w) 3825 | -9/Mines | Learned Materials security intel 3884 | -9/Mines | Build established: Mutant 3923 | -9/Mines | Found a damaged Exp. Sensor Array with a note attached 3928 | -9/Mines | Found Prototype Device 4369 | -9/Mines | Discovered new exit (range 5) 4381 | -9/Mines | Entered Exiles 4449 | -9/Exiles | Met 8R-AWN 4483 | -9/Exiles | Met EX-HEX 4557 | -9/Exiles | Met EX-BIN 4591 | -9/Exiles | Aligned with FarCom system 4593 | -9/Exiles | Given EX-Vault access code 4658 | -9/Exiles | Opened EX-Vault 4680 | -9/Exiles | Found Longsword +1 4733 | -9/Exiles | Warned to stay clear of 0b10 Research branches 4796 | -9/Exiles | Met EX-DEC 4946 | -9/Exiles | Discovered new exit (range 11) 5414 | -9/Exiles | Attacked by the Exiles 5494 | -9/Exiles | Core integrity fell below 50% 5591 | -9/Exiles | Lost 8 parts (1p4n1u2w) 5644 | -9/Exiles | Core integrity fell below 20% 5661 | -9/Exiles | Destroyed 8R-AWN 5662 | -9/Exiles | Lost 4 parts (1n1u2w) 5681 | -9/Exiles | Found Prototype Processor 5681 | -9/Exiles | Identified Exp. Targeting Computer 5734 | -9/Exiles | Destroyed by DAS Turret with DAS Cannon Last Messages --------------- 05675_ Acquired Prototype Device. 05675_ Identified Gravity Neutralizer. 05676_ Dropped Hvy. Assault Rifle. 05681_ Acquired Prototype Processor. 05681_ Identified Exp. Targeting Computer. 05688_ Acquired Longsword +1. 05691_ Acquired Imp. Ion Engine. 05694_ Dropped Hvy. Assault Rifle. 05698_ Discarded Imp. Targeting Computer. 05699_ Acquired Lgt. Armor Plating. 05701_ Acquired Core Shielding. 05702_ Dropped Mining Laser. 05703_ Acquired Huge Storage Unit. 05729_ Lgt. Armor Plating destroyed. 05729_ Knocked back. 05729_ Acquired 2 matter. 05730_ Imp. Ion Engine destroyed. 05730_ Knocked back. 05731_ Acquired 4 matter. 05732_ Knocked back. Map ----- +----------------------------------------------------+ | ##???## ""#?????????????????????????#" | | #####" ""#?????????????????????????#" | | ##" ""#?????????????????????????## | | #"" #??????????????? ???????????# | | ## #??????????????" ??????????#" | | ##### ##?????????????" ??????????#" | | ????##" "####?????????? ""?????????#" | | ###### """#??????????" "?????????##" | | !! [ "#??????????# #????????##"" | | ######???### ###?######"" | | /!| #####X# #"###""""""" | | !!!!" [ ! """""" " "" | | """"" #""[ " " "" """ " | | ########## # #### " " | | ?????????#####??##" | | ?????????????????#### | | ????????????????????## | | ?????????????????????## | | ??????????????????????##" | | ???????????????????????#""" """""" | | ??????????????????????##" ######"" | | ??????????????????????#"" ""##????### | | ?????????????????????##""" """##???????? | | ?????????????????????#""" """##????????? | | ?????????????????????#"""% ""#?????????? | | ?????????????????????#"" @ ########??## | | ?????????????????????#"""t ## ####" | | ?????????????????????#"" % """" | | ?????????????????????##"" | | ??????????????????????#"""" | | ??????????????????????## | | ???????????????????????#" " | | ???????????????????????#"""" ""## # | | ???????????????????????#"" ""#### # | | ???????????????????????#" """"##??# # | | ???????????????????????#""" """#??## # | | ???????????????????????## ""##??# * | | ????????????????????????#"" """##???#" | | ????????????????????????##""" ##????#" | | ?????????????????????????##"""" ##?????#!!"" | | ???????????????????????????## #??????##### | | ????????????????????????????##### ##??????????? | | ????????????????????????????????## #???????????? | | ?????????????????????????????????# #???????????? | | ?????????????????????????????????# #???????????? | | ?????????????????????????????????# #???????????? | | ?????????????????????????????????? ????????????? | | ?????????????????????????????????????????????????? | | ?????????????????????????????????????????????????? | | ?????????????????????????????????????????????????? | +----------------------------------------------------+ Best States ------------- Heat Dissipation 28 Energy Generation 12 Energy Capacity 265 Matter Stores 300 Matter Capacity 300 Sight Range 16 Terrain Scan Density 10 Additional Mass Support 12 Armor Coverage 225 Core Shielding 20 Evasion (%) 50 Targeting Accuracy 12 Recoil Reduction 3 Offensive Hacking 10 Item Schematics ----------------- Huge Storage Unit | -9/Materials | Scanalyzed Robot Schematics ------------------ None Fabricated ------------ Nothing Alien Tech Used ----------------- None Achievements -------------- None Challenges ------------ None Game ------ Seed CarbideMomentumLaser Manual? 0 Play Time 00:54:58 Cumulative 124.4 hours Start 2022.12.22 @ 21:28:04 End 2022.12.22 @ 22:29:37 Sessions 1 Manual Loads 0 Difficulty Rogue Special Mode None Game No. 41 Rogue 41 Adventurer 0 Explorer 0 Win Type - Total 1 Types 1/0/0/0/0/0/0/0/0 Lore% 46 Gallery% 52 Achievement% 44 Wizard Run 0 Options --------- ASCII 0 Keyboard 1 Movement Vi Keybinds 0 Fullscreen 1 Font 18/SmallcapsGlow Map View 76x50 Tactical HUD 1 Map Filters NONE Filters NONE Steam 1 RUN: b1584a47-a29b-407f-a7f2-158c8a35e2c6